bitfinex-derivatives/quotes_ETHF0:USTF0_20250606
["timestamp","ask_amount","ask_price","bid_price","bid_amount"]
[1749181113850,5.91755522,2442.6,2442.3,5.40169]
[1749181114152,0.00613522,2442.6,2442.4,0.81846]
[1749181114351,0.00613522,2442.6,2442.3,4.5832]
[1749181114352,0.82454522,2442.6,2442.5,1.3754]
[1749181115053,0.00613522,2442.6,2442.5,2.19384]
[1749181115454,0.00613522,2442.6,2442.5,7.19384]
[1749181116262,0.00613522,2442.6,2442.5,8.38601204]
[1749181117744,0.00613522,2442.6,2442.5,3.38601204]
[1749181118156,0.00613522,2442.6,2442.5,3.78405611]
[1749181119858,0.00613522,2442.6,2442.5,8.78405611]
[1749181120155,0.00613522,2442.6,2442.5,9.57107247]
[1749181122456,0.00613522,2442.6,2442.5,7.19384]
[1749181122958,0.00613522,2442.6,2442.5,2.19384]
[1749181123657,3.2078,2443.8,2442.6,2.04603]
[1749181123863,0.8842,2444.0,2443.4,2.01808907]
[1749181124056,0.8181,2443.6,2443.5,1.19996907]
[1749181124765,0.81814,2443.4,2443.3,4.41390429]
[1749181124953,0.81814,2443.4,2443.3,3.21393522]
[1749181125358,0.81814,2443.4,2443.3,4.41390429]
[1749181125863,1.67434,2443.4,2443.3,3.21393522]
[1749181128469,2.50244,2443.4,2443.3,0.00613522]
[1749181133567,6.76434,2443.4,2443.3,0.00613522]
[1749181133773,4.02585,2443.7,2443.4,0.81814]
[1749181133963,0.81804,2443.7,2443.6,3.2078]
[1749181134265,0.85563522,2443.8,2443.5,1.19996907]
[1749181134266,0.81807,2443.6,2443.5,1.19996907]
[1749181134462,0.81807,2443.6,2443.4,1.19996907]
[1749181134463,0.81811,2443.5,2443.4,1.19996907]
[1749181136872,0.81814,2443.4,2443.3,4.41390429]
[1749181137172,1.71234,2443.4,2443.3,4.41613019]
[1749181138462,2.59144,2443.4,2443.3,4.41613019]
[1749181138664,2.59144,2443.4,2443.3,3.21393522]
[1749181138866,4.50274,2443.4,2443.3,3.21393522]
[1749181139062,4.50274,2443.4,2443.3,0.00613522]
[1749181140372,9.50274,2443.4,2443.3,5.22e-06]
[1749181146373,4.50274,2443.4,2443.3,5.22e-06]
[1749181148974,7.71054,2443.4,2443.3,5.22e-06]
[1749181149968,12.71054,2443.4,2443.3,5.22e-06]
[1749181153775,13.97134,2443.4,2443.3,5.22e-06]
[1749181154766,0.81834,2442.8,2442.7,5.69495876]
[1749181154975,0.81837,2442.7,2442.6,2.45805876]
[1749181155371,0.81837,2442.7,2442.6,0.8581]
[1749181156971,5.90936,2442.8,2442.6,7.1353]
[1749181157167,5.90936,2442.8,2442.7,3.2078]
[1749181157168,0.81836,2442.8,2442.7,3.2078]
[1749181157371,0.81836,2442.8,2442.7,4.485]
[1749181158473,2.7849,2443.4,2442.7,4.485]
[1749181158687,0.81831,2442.9,2442.8,1.2772]
[1749181158881,0.8183,2443.0,2442.8,1.2772]
[1749181159179,4.83032,2443.4,2442.8,1.2772]
[1749181159180,0.81831,2442.9,2442.8,1.2772]
[1749181159381,0.81829,2443.0,2442.8,1.2772]
[1749181159577,5.091,2443.1,2442.8,3.67713814]
[1749181159872,0.81829,2443.0,2442.8,3.67713814]
[1749181160271,0.81829,2443.0,2442.9,3.2078]
[1749181160475,0.81829,2443.0,2442.9,9.5482]
[1749181161183,0.81829,2443.0,2442.9,4.5482]
[1749181162478,0.81829,2443.0,2442.9,3.2078]
[1749181163583,2.83919,2443.0,2442.9,3.2078]
[1749181167986,2.83919,2443.0,2442.9,4.557]
[1749181168186,2.83919,2443.0,2442.9,6.95693814]
[1749181168483,2.0209,2443.0,2442.9,6.95693814]
[1749181168789,2.0209,2443.0,2442.9,5.37531]
[1749181168978,2.0209,2443.0,2442.9,10.37531]
[1749181173087,0.8181,2443.6,2443.3,0.81815]
[1749181173285,5.09513522,2443.8,2443.4,4.52166101]
[1749181173484,0.8181,2443.6,2443.5,0.8834]
[1749181173696,0.8181,2443.6,2443.5,2.1409]
[1749181173987,5.09513522,2443.8,2443.5,2.1409]
[1749181174186,0.00613522,2443.8,2443.5,2.1409]
[1749181174389,0.82414522,2443.8,2443.6,2.41486101]
[1749181174591,0.82414522,2443.8,2443.7,1.2575]
[1749181176796,0.00613522,2443.8,2443.7,2.07554]
[1749181178193,0.00613522,2443.8,2443.7,9.49040101]
[1749181178490,0.00613522,2443.8,2443.7,1.2575]
[1749181179091,0.00613522,2443.8,2443.6,6.44073101]
[1749181179688,0.00613522,2443.8,2443.6,3.2078]
[1749181179689,0.81804,2443.7,2443.6,3.2078]
[1749181180293,0.82416522,2443.8,2443.6,3.2078]
[1749181180490,0.81804,2443.7,2443.6,3.2078]
[1749181180692,0.00613522,2443.8,2443.6,3.2078]
[1749181180998,0.81804,2443.7,2443.6,3.2078]
[1749181182195,0.82416522,2443.8,2443.6,3.2078]
[1749181182389,0.81804,2443.7,2443.6,3.2078]
[1749181188801,0.82416522,2443.8,2443.6,4.02587]
[1749181189002,0.81804,2443.7,2443.6,3.2078]
[1749181189203,0.00613522,2443.8,2443.7,0.81804]
[1749181189400,0.00613522,2443.8,2443.7,4.56350101]
[1749181190196,0.00613522,2443.8,2443.7,2.14864]
[1749181195093,0.00613522,2443.8,2443.7,3.05664]
[1749181197497,0.00613522,2443.8,2443.7,6.27645468]
[1749181199405,24.752,2444.8,2444.4,0.8178]
[1749181199605,1.66393,2444.7,2444.4,0.81778]
[1749181199904,0.81775,2444.6,2444.4,0.81778]
[1749181200401,2.159,2444.7,2444.3,5.62534789]
[1749181200402,0.85233522,2444.7,2444.3,5.62534789]
[1749181200601,0.00613522,2444.7,2444.6,3.2078]
[1749181200902,0.00613522,2444.7,2444.6,4.02554]
[1749181201299,0.00613522,2444.7,2444.6,11.32085468]
[1749181201599,0.00613522,2444.7,2444.6,8.10104]
[1749181201994,3.104,2445.3,2445.2,0.81754]
[1749181202207,0.9059,2445.3,2445.2,4.02534]
[1749181202501,1.72331,2445.6,2445.2,3.2078]
[1749181202706,2.1985,2445.6,2445.5,3.2078]
[1749181203402,2.1985,2445.6,2445.5,4.02524]
[1749181203597,2.1985,2445.6,2445.5,3.2078]
[1749181203598,0.9059,2445.6,2445.5,3.2078]
[1749181203799,0.9059,2445.6,2445.5,4.02524]
[1749181204195,0.9059,2445.6,2445.5,3.2078]
[1749181204600,0.9059,2445.6,2445.5,4.02524]
[1749181205000,0.9059,2445.6,2445.5,3.2078]
[1749181205806,1.7233,2445.6,2445.5,3.2078]
[1749181206308,0.9059,2445.6,2445.5,3.2078]
[1749181206606,0.00613522,2445.8,2445.5,3.2078]
[1749181206805,0.00613522,2445.8,2445.6,0.8588]
[1749181207312,0.82349522,2445.8,2445.6,0.8588]
[1749181207510,0.81737,2445.7,2445.5,3.2078]
[1749181208304,1.26723522,2445.8,2445.6,0.8174]
[1749181208706,0.00613522,2445.8,2445.6,0.8174]
[1749181209005,0.00613522,2445.8,2445.6,0.81738]
[1749181209205,0.00613522,2445.8,2445.5,3.2078]
[1749181209405,0.00613522,2445.8,2445.7,0.81737]
[1749181210000,0.9281,2446.2,2446.1,0.81724]
[1749181210196,0.9281,2446.2,2445.7,1.72537]
[1749181210197,5.083,2446.4,2446.0,3.2078]
[1749181210409,5.083,2446.4,2446.3,4.02497]
[1749181210611,2.1894,2446.5,2446.3,4.02497]
[1749181210906,0.81704,2446.7,2446.3,3.2078]
[1749181211107,0.00613522,2446.7,2446.5,0.81708]
[1749181211307,0.00613522,2446.7,2446.3,4.02495]
[1749181211501,1.31753522,2446.7,2446.3,3.2078]
[1749181212204,0.81712,2446.5,2446.3,3.2078]
[1749181212399,0.81714,2446.4,2446.3,3.2078]
[1749181212599,1.31753522,2446.7,2446.3,3.2078]
[1749181212600,0.00613522,2446.7,2446.6,0.81707]
[1749181212800,0.00613522,2446.7,2446.6,4.02487]
[1749181214409,0.82317522,2446.7,2446.6,3.2078]
[1749181214611,0.81714,2446.4,2446.3,3.2078]
[1749181215009,0.81712,2446.5,2446.3,3.2078]
[1749181215312,0.00613522,2446.7,2446.3,3.2078]
[1749181215514,0.00613522,2446.7,2446.6,3.2078]
[1749181215812,0.00613522,2446.7,2446.6,4.02487]
[1749181216916,0.00613522,2446.7,2446.6,3.2078]
[1749181217413,0.82317522,2446.7,2446.6,3.2078]
[1749181218415,0.00613522,2446.7,2446.6,3.2078]
[1749181218708,0.00613522,2446.7,2446.6,4.02487]
[1749181219106,0.00613522,2446.7,2446.6,9.10487]
[1749181219614,0.8468,2447.5,2446.6,14.1958]
[1749181219916,0.81683,2447.4,2447.2,3.2078]
[1749181220213,0.81684,2447.3,2447.2,3.2078]
[1749181221006,1.3447,2447.4,2447.2,3.2078]
[1749181221203,1.77513522,2447.5,2447.2,3.2078]
[1749181221708,0.81684,2447.3,2447.2,3.2078]
[1749181222916,2.10072,2447.4,2447.2,3.2078]
[1749181223111,0.81684,2447.3,2447.2,3.2078]
[1749181225819,1.2839,2447.4,2447.2,3.2078]
[1749181225820,2.10073,2447.4,2447.2,3.2078]
[1749181226011,0.81684,2447.3,2447.2,3.2078]
[1749181226211,2.12444,2447.3,2447.2,3.2078]
[1749181226822,1.3076,2447.3,2447.2,3.2078]
[1749181227318,0.81682,2447.4,2447.2,3.2078]
[1749181227621,1.74513522,2447.5,2447.3,0.81683]
[1749181227920,0.92833522,2447.5,2447.3,0.81683]
[1749181228220,0.92833522,2447.5,2447.4,0.8168]
[1749181228825,0.00613522,2447.5,2447.4,0.8168]
[1749181230821,0.82290522,2447.5,2447.3,0.81682]
[1749181231323,0.00613522,2447.5,2447.2,3.2078]
[1749181231514,0.81681,2447.4,2447.2,4.02465]
[1749181231717,0.00613522,2447.5,2447.2,3.2078]
[1749181231914,0.00613522,2447.5,2447.3,0.81684]
[1749181232120,0.00613522,2447.5,2447.4,0.8168]
[1749181234028,0.00613522,2447.5,2447.4,2.1632]
[1749181235028,0.81659,2448.1,2447.9,0.81663]
[1749181235223,0.8166,2448.0,2447.9,0.81663]
[1749181235526,0.8166,2448.0,2447.8,0.81665]
[1749181235928,0.81661,2448.0,2447.8,0.81664]
[1749181236127,0.87223522,2448.1,2447.9,1.70413]
[1749181236719,0.87223522,2448.1,2447.9,1.70412]
[1749181237331,0.8166,2448.0,2447.9,0.8875]
[1749181239129,0.81667,2447.8,2447.7,3.2078]
[1749181239630,0.81665,2447.9,2447.7,3.2078]
[1749181239833,0.81665,2447.9,2447.7,4.02449]
[1749181240033,2.09832,2448.0,2447.8,0.81667]
[1749181240233,1.2817,2448.0,2447.9,0.81664]
[1749181240532,1.68880522,2448.1,2447.8,0.81665]
[1749181240733,1.68880522,2448.1,2447.7,3.2078]
[1749181241121,0.81661,2448.0,2447.7,3.2078]
[1749181241329,0.81661,2448.0,2447.8,0.81665]
[1749181241532,0.81661,2448.0,2447.9,0.9058]
[1749181242832,0.81661,2448.0,2447.5,2.40786679]
[1749181242833,0.81674,2447.6,2447.5,2.40786679]
[1749181243033,0.81677,2447.5,2447.4,3.2078]
[1749181243640,3.1138,2447.7,2447.4,3.2078]
[1749181243641,0.81675,2447.6,2447.4,3.2078]
[1749181244436,0.81677,2447.5,2447.4,3.2078]
[1749181244744,0.81678,2447.5,2447.3,0.81684]
[1749181245433,0.81677,2447.5,2447.3,0.81684]
[1749181245639,2.13985,2447.6,2447.4,0.8168]
[1749181245840,0.8767,2447.7,2447.6,0.81674]
[1749181246439,5.073,2447.9,2447.4,3.2078]
[1749181246639,1.72581,2448.0,2447.8,0.81667]
[1749181247039,1.72581,2448.0,2447.8,1.73857]
[1749181247235,0.9092,2448.0,2447.8,0.9219]
[1749181247444,0.81667,2447.8,2447.7,1.6072119]
[1749181247640,1.3213,2447.9,2447.5,1.6072119]
[1749181247939,1.3213,2447.7,2447.4,6.5536819]
[1749181248242,1.3213,2447.7,2447.4,5.7369119]
[1749181248243,0.81677,2447.6,2447.4,5.7369119]
[1749181248443,1.72857,2447.6,2447.4,5.7369119]
[1749181249840,1.72857,2447.6,2447.4,6.5537119]
[1749181252347,1.72857,2447.6,2447.5,1.6072119]
[1749181252853,1.72857,2447.6,2447.4,4.8150119]
[1749181252854,0.81677,2447.5,2447.4,4.8150119]
[1749181253052,2.07847,2447.5,2447.4,4.8150119]
[1749181254944,2.07847,2447.5,2447.4,3.2078]
[1749181255350,0.8168,2447.4,2447.3,1.6072119]
[1749181255551,0.8168,2447.4,2447.2,1.6072119]
[1749181255552,0.81684,2447.3,2447.2,1.6072119]
[1749181255844,0.81684,2447.3,2447.0,5.62180201]
[1749181255845,0.8169,2447.1,2447.0,4.82114712]
[1749181256050,0.8169,2447.1,2447.0,3.21393522]
[1749181256453,2.1412,2447.1,2447.0,3.21393522]
[1749181256643,2.1412,2447.1,2447.0,0.00613522]
[1749181258151,0.8169,2447.1,2447.0,0.00613522]
[1749181259150,2.0816,2447.1,2447.0,0.00613522]
[1749181259547,2.0816,2447.1,2447.0,3.21393522]
[1749181259749,0.8169,2447.1,2447.0,3.21393522]
[1749181260247,1.71129,2447.2,2447.0,4.03085522]
[1749181260453,5.07,2447.3,2447.0,3.21393522]
[1749181260648,5.88686,2447.3,2447.1,0.9365]
[1749181260856,0.8627,2447.5,2447.1,0.9365]
[1749181261151,1.67947,2447.5,2447.4,3.2078]
[1749181261555,0.81686,2447.3,2447.1,6.55216679]
[1749181262053,0.81686,2447.3,2447.1,7.36906679]
[1749181262254,0.81682,2447.4,2447.1,8.75806679]
[1749181262451,0.81684,2447.3,2447.1,8.75806679]
[1749181263350,0.81682,2447.4,2447.1,8.75806679]
[1749181264954,0.8627,2447.5,2447.1,6.55216679]
[1749181265154,0.8627,2447.5,2447.1,7.36905679]
[1749181265155,0.81683,2447.4,2447.1,7.36905679]
[1749181265958,0.81682,2447.4,2447.1,7.36904679]
[1749181266154,0.81682,2447.4,2447.2,0.81686]
[1749181267659,0.81682,2447.4,2447.2,0.81687]
[1749181268049,1.67948,2447.5,2447.3,0.81684]
[1749181268359,1.67947,2447.5,2447.4,3.2078]
[1749181268855,0.8843,2447.8,2447.4,3.2078]
[1749181269053,0.00613522,2448.1,2448.0,0.8166]
[1749181269361,0.00613522,2448.1,2448.0,4.0244]
[1749181270749,0.00613522,2448.1,2448.0,5.3232]
[1749181270950,5.07,2448.6,2448.0,6.91446679]
[1749181271161,5.07,2448.6,2448.3,0.8165]
[1749181271353,5.07,2448.6,2448.4,0.81647]
[1749181271552,3.2078,2448.8,2448.2,2.40913257]
[1749181271850,0.82048014,2448.7,2448.4,0.81645]
[1749181272250,0.82048014,2448.7,2448.4,2.62325]
[1749181272251,0.82046014,2448.7,2448.4,2.62325]
[1749181272861,0.82046014,2448.7,2448.6,3.2078]
[1749181273061,0.00409014,2448.7,2448.4,1.8068]
[1749181273257,0.81641,2448.6,2448.4,1.8068]
[1749181273760,0.81642,2448.6,2448.4,1.8068]
[1749181274060,0.00409014,2448.7,2448.4,1.8068]
[1749181274261,0.00409014,2448.7,2448.5,0.81642]
[1749181274561,0.82046014,2448.7,2448.4,4.00825]
[1749181274759,0.00409014,2448.7,2448.6,3.2078]
[1749181275854,6.74672,2449.2,2448.9,0.81628]
[1749181276056,6.74672,2449.2,2448.9,3.2078]
[1749181276256,6.74672,2449.2,2448.9,4.02409]
[1749181276852,0.81624,2449.1,2448.9,3.2078]
[1749181277053,6.74672,2449.2,2448.9,4.02409]
[1749181277461,0.81624,2449.1,2448.9,4.02409]
[1749181277756,5.9305,2449.2,2448.9,3.2078]
[1749181277757,0.81627,2449.0,2448.9,3.2078]
[1749181277963,0.81626,2449.1,2448.9,3.2078]
[1749181278257,5.9305,2449.2,2448.9,3.2078]
[1749181278463,1.67772,2449.2,2448.9,4.02409]
[1749181278655,0.81627,2449.0,2448.9,3.2078]
[1749181280257,5.9295,2449.2,2448.9,3.2078]
[1749181280464,0.81626,2449.1,2448.9,3.2078]
[1749181280866,0.81627,2449.0,2448.9,3.2078]
[1749181281358,0.81638,2448.7,2448.5,3.2078]
[1749181281568,1.70562,2448.9,2448.5,3.2078]
[1749181281865,5.9295,2449.2,2448.8,3.2078]
[1749181282069,8.077,2449.2,2448.8,3.2078]
[1749181282260,0.81629,2449.0,2448.8,3.2078]
[1749181282562,0.8163,2448.9,2448.8,3.2078]
[1749181282964,0.81628,2449.0,2448.8,3.2078]
[1749181283164,0.8163,2448.9,2448.8,3.2078]
[1749181283362,8.077,2449.2,2448.8,3.2078]
[1749181283363,0.81629,2449.0,2448.8,3.2078]
[1749181283568,0.8163,2448.9,2448.8,3.2078]
[1749181284165,0.81629,2449.0,2448.8,3.2078]
[1749181284466,0.81629,2449.0,2448.8,4.02413]
[1749181284660,0.81629,2449.0,2448.8,3.2078]
[1749181285468,0.81629,2449.0,2448.8,4.02413]
[1749181285860,8.077,2449.2,2448.8,4.02413]
[1749181285861,0.8163,2448.9,2448.8,3.2078]
[1749181286462,0.81628,2449.0,2448.8,4.02413]
[1749181286667,0.81627,2449.0,2448.8,4.02413]
[1749181286861,0.81627,2449.0,2448.8,3.2078]
[1749181287365,0.81628,2449.0,2448.8,4.02413]
[1749181287768,0.81627,2449.0,2448.8,4.02412]
[1749181287967,0.81627,2449.0,2448.8,3.2078]
[1749181289973,0.81625,2449.1,2448.8,3.2078]
[1749181290471,0.81627,2449.0,2448.8,4.02412]
[1749181291275,8.077,2449.2,2448.8,4.02412]
[1749181291472,8.89322,2449.2,2448.9,0.81629]
[1749181291670,8.89322,2449.2,2448.8,3.2078]
[1749181291671,1.65661,2449.2,2449.0,0.81625]
[1749181291869,5.062,2449.3,2448.8,4.5001]
[1749181292175,0.81622,2449.2,2449.1,0.81623]
[1749181292369,5.062,2449.3,2449.1,0.81623]
[1749181292370,5.87819,2449.3,2449.1,0.81623]
[1749181292570,0.8162,2449.2,2449.1,0.81623]
[1749181293076,0.8162,2449.2,2449.0,1.69774]
[1749181293376,0.81623,2449.1,2449.0,1.69774]
[1749181293577,0.81623,2449.2,2449.0,1.69774]
[1749181293778,0.81623,2449.1,2449.0,0.8815]
[1749181294676,5.062,2449.3,2448.8,4.02411]
[1749181294979,2.2207,2449.2,2448.8,4.89231]
[1749181295279,0.81629,2449.0,2448.8,4.89231]
[1749181295477,0.81629,2449.0,2448.8,4.076]
[1749181295673,0.8163,2448.9,2448.8,4.076]
[1749181295869,4.26126,2449.2,2448.8,3.2078]
[1749181296181,0.8163,2448.9,2448.8,3.2078]
[1749181296878,2.2306,2449.1,2448.8,3.2078]
[1749181297071,2.2306,2449.1,2449.0,0.81627]
[1749181297273,0.8351,2449.2,2448.8,4.02412]
[1749181297468,0.8351,2449.2,2448.8,4.0877]
[1749181297674,2.2278,2449.2,2448.9,0.8163]
[1749181297981,0.81627,2449.0,2448.8,4.90402]
[1749181298277,0.81624,2449.1,2448.8,4.90401]
[1749181298474,0.81624,2449.1,2448.8,7.31314257]
[1749181298674,0.81628,2449.0,2448.8,7.31314257]
[1749181299077,2.2278,2449.2,2448.8,7.31314257]
[1749181299078,0.81625,2449.1,2448.9,0.8163]
[1749181299580,3.04402,2449.2,2448.9,3.22543257]
[1749181299782,0.81624,2449.1,2448.9,3.22543257]
[1749181300183,0.81627,2449.0,2448.9,2.40913257]
[1749181300481,2.2278,2449.2,2448.9,2.40913257]
[1749181300682,0.81625,2449.1,2448.9,2.40913257]
[1749181301482,0.81625,2449.1,2448.9,3.22543257]
[1749181301883,0.81625,2449.1,2448.9,2.40913257]
[1749181302185,0.81625,2449.1,2448.9,3.22543257]
[1749181302681,0.81625,2449.1,2449.0,2.40913257]
[1749181302877,2.04033,2449.5,2449.1,0.81622]
[1749181302878,5.062,2449.5,2449.1,0.81622]
[1749181303085,0.81613,2449.4,2449.3,3.2078]
[1749181303280,28.7847,2449.7,2449.3,3.2078]
[1749181303281,4.0787,2449.7,2449.3,3.2078]
[1749181303477,0.8161,2449.5,2449.4,0.8588]
[1749181304281,0.81609,2449.6,2449.4,1.67492]
[1749181304684,3.2078,2449.7,2449.4,0.8588]
[1749181305080,0.81605,2449.7,2449.5,2.41313414]
[1749181306186,0.81607,2449.6,2449.5,2.41313414]
[1749181306586,0.8161,2449.5,2449.4,4.18403414]
[1749181306787,0.81609,2449.6,2449.4,4.18403414]
[1749181306986,0.8161,2449.5,2449.4,4.18403414]
[1749181307188,5.062,2449.5,2449.2,2.41313414]
[1749181307380,5.062,2449.5,2448.9,10.38417793]
[1749181307381,3.1465,2449.4,2449.0,2.41313414]
[1749181307586,0.81627,2449.0,2448.9,5.62093414]
[1749181308590,1.3731,2449.3,2448.9,5.62093414]
[1749181308785,0.81627,2449.0,2448.9,5.62093414]
[1749181309187,0.81627,2449.0,2448.9,3.2078]
[1749181313292,3.02687,2449.0,2448.9,3.2078]
[1749181313898,2.2106,2449.0,2448.9,3.2078]
[1749181314199,3.02687,2449.0,2448.9,3.2078]
[1749181316292,1.67757,2449.0,2448.9,3.2078]
[1749181324503,5.056,2449.2,2448.9,3.2078]
[1749181324798,5.056,2449.2,2448.9,4.02409]
[1749181325002,0.81624,2449.1,2448.9,4.02409]
[1749181325198,5.056,2449.2,2448.9,3.2078]
[1749181325400,5.056,2449.2,2448.9,6.96283414]
[1749181325701,1.73867,2449.3,2449.0,5.48268414]
[1749181326200,1.73867,2449.3,2449.1,0.8502]
[1749181326402,0.8162,2449.2,2449.1,0.8502]
[1749181328205,0.8162,2449.2,2449.0,4.14078414]
[1749181328206,0.81624,2449.1,2449.0,2.41313414]
[1749181328507,0.81637,2448.7,2448.6,3.2078]
[1749181328706,0.81644,2448.5,2448.4,2.41313414]
[1749181328908,1.6886,2448.6,2448.3,2.41926936]
[1749181329113,0.81647,2448.4,2448.3,0.00613522]
[1749181333813,5.87247,2448.4,2448.3,0.00613522]
[1749181334009,10.87247,2448.4,2448.3,5.22e-06]
[1749181334212,12.19417,2448.4,2448.3,5.22e-06]
[1749181337116,7.19517,2448.4,2448.3,5.22e-06]
[1749181351329,5.87347,2448.4,2448.3,5.22e-06]
[1749181354719,1.3559,2448.5,2448.3,5.22e-06]
[1749181355021,1.69473,2448.6,2448.3,0.81648522]
[1749181355022,0.00613,2448.6,2448.3,0.81648522]
[1749181355218,0.00613,2448.6,2448.5,3.2078]
[1749181355219,0.82256,2448.6,2448.5,3.2078]
[1749181357034,0.00613,2448.6,2448.5,3.2078]
[1749181357222,0.00613,2448.6,2448.5,5.37194]
[1749181357626,0.00613,2448.6,2448.5,4.5555]
[1749181357929,0.82253,2448.6,2448.5,4.5555]
[1749181358131,0.00613,2448.6,2448.5,4.5555]
[1749181358631,0.82253,2448.6,2448.5,4.5555]
[1749181359233,0.00613,2448.6,2448.5,4.5555]
[1749181359433,0.00613,2448.6,2448.5,5.37194]
[1749181360432,0.00613,2448.6,2448.5,5.37193]
[1749181360935,0.82253,2448.6,2448.5,5.37193]
[1749181361435,0.82253,2448.6,2448.5,4.5555]
[1749181363831,0.82253,2448.6,2448.5,6.96669837]
[1749181365438,0.82253,2448.6,2448.5,3.2078]
[1749181368437,0.81647,2448.4,2448.3,5.22e-06]
[1749181368640,5.86547,2448.4,2448.3,5.22e-06]
[1749181369137,6.74497,2448.4,2448.3,5.22e-06]
[1749181369340,8.08237,2448.4,2448.3,5.22e-06]
[1749181376446,3.03337,2448.4,2448.3,5.22e-06]
[1749181376642,0.9009,2448.5,2448.3,5.22e-06]
[1749181376842,0.9009,2448.5,2448.3,0.90560522]
[1749181377140,0.81647,2448.4,2448.3,1.75740522]
[1749181377545,0.81647,2448.4,2448.3,0.90560522]
[1749181379148,0.00613,2448.6,2448.3,0.90560522]
[1749181379444,0.00613,2448.6,2448.5,4.02424]
[1749181379843,0.00613,2448.6,2448.5,4.0274]
[1749181380043,0.00613,2448.6,2448.5,5.3275]
[1749181380242,0.82253,2448.6,2448.5,5.3275]
[1749181380647,0.00613,2448.6,2448.5,5.3275]
[1749181381249,0.82253,2448.6,2448.5,5.3275]
[1749181381752,2.04058,2449.2,2448.5,5.3275]
[1749181381753,0.81614,2449.4,2449.2,0.81619]
[1749181381951,8.2488,2449.7,2449.3,3.2078]
[1749181382151,8.2488,2449.7,2449.3,5.3558]
[1749181382450,0.81614,2449.4,2449.3,6.1805]
[1749181383253,0.81614,2449.4,2449.3,4.8771]
[1749181385853,0.81614,2449.4,2449.3,3.2078]
[1749181387451,3.2078,2450.0,2449.3,13.2478]
[1749181387757,0.81599,2449.9,2449.6,4.02387]
[1749181388054,0.81599,2449.9,2449.7,1.8036]
[1749181389757,0.816,2449.8,2449.7,1.8036]
[1749181393557,0.81604,2449.7,2449.6,3.2078]
[1749181393754,1.64374,2449.7,2449.6,3.2078]
[1749181394460,2.92864,2449.7,2449.6,3.2078]
[1749181396961,0.81607,2449.6,2449.5,0.00613522]
[1749181397255,0.8162,2449.2,2449.1,3.2078]
[1749181398163,9.0745,2449.7,2449.1,3.2078]
[1749181398349,0.81618,2449.3,2449.2,2.1471]
[1749181399653,0.00613522,2449.4,2449.2,7.96329]
[1749181399955,0.82226522,2449.4,2449.3,1.2686]
[1749181400655,0.00613522,2449.4,2449.3,6.2686]
[1749181400961,0.82226522,2449.4,2449.3,6.2686]
[1749181401263,0.00613522,2449.4,2449.3,6.2686]
[1749181401855,0.82226522,2449.4,2449.3,6.2686]
[1749181402056,0.00613522,2449.4,2449.3,7.08477]
[1749181402563,0.00613522,2449.4,2449.3,6.2686]
[1749181402856,0.00613522,2449.4,2449.3,7.08477]
[1749181404360,0.00613522,2449.4,2449.3,2.08477]
[1749181404563,0.00613522,2449.4,2449.3,7.08477]
[1749181405557,0.82226522,2449.4,2449.3,8.67657491]
[1749181405762,0.00613522,2449.4,2449.3,9.49274491]
[1749181407159,0.00613522,2449.4,2449.3,7.08477]
[1749181407657,2.03944,2450.5,2449.3,6.2686]
[1749181407854,0.8159,2450.1,2450.0,3.2078]
[1749181408664,2.03971,2450.2,2449.7,3.2078]
[1749181408860,0.816,2449.8,2449.7,3.2078]
[1749181409464,0.816,2449.8,2449.7,5.6135177]
[1749181409863,0.816,2449.8,2449.7,3.2078]
[1749181413669,1.2944,2450.0,2449.7,3.2078]
[1749181413866,0.816,2449.8,2449.7,3.2078]
[1749181415873,0.81607,2449.6,2449.5,2.4057177]
[1749181416073,0.81607,2449.6,2449.5,5.6135177]
[1749181416275,0.81607,2449.6,2449.5,3.2078]
[1749181418573,0.81613,2449.5,2449.3,0.8876]
[1749181418777,1.2982,2449.9,2449.3,0.8876]
[1749181418981,0.81607,2449.6,2449.5,3.2078]
[1749181421675,10.033,2449.6,2449.2,3.2078]
[1749181421873,0.81617,2449.3,2449.2,3.2078]
[1749181422883,0.8162,2449.2,2449.1,2.41242302]
[1749181423077,5.9232,2449.5,2449.1,2.41242302]
[1749181423383,0.81618,2449.3,2449.2,3.2078]
[1749181423584,0.81618,2449.3,2449.2,6.46352302]
[1749181424388,0.81617,2449.3,2449.2,6.46352302]
[1749181428578,0.81617,2449.3,2449.2,7.30372302]
[1749181430178,0.81617,2449.3,2449.2,3.2078]
[1749181431085,0.81627,2449.0,2448.9,3.21393522]
[1749181431475,0.81615,2449.4,2449.1,0.81621]
[1749181431779,0.81615,2449.4,2448.9,7.71764824]
[1749181431780,5.033,2449.4,2448.9,7.71764824]
[1749181431980,6.3505,2449.4,2448.9,7.71764824]
[1749181432186,0.81624,2449.1,2448.9,7.71764824]
[1749181432580,0.81624,2449.1,2448.9,6.90135824]
[1749181432784,0.81624,2449.1,2448.9,7.71765824]
[1749181433286,0.81624,2449.1,2448.9,6.90135824]
[1749181433594,0.81627,2449.0,2448.9,6.90135824]
[1749181433884,0.81625,2449.1,2448.9,6.90135824]
[1749181434287,5.033,2449.4,2448.9,6.90135824]
[1749181434587,5.033,2449.4,2448.9,5.62635824]
[1749181434885,0.81626,2449.1,2448.9,5.62635824]
[1749181435079,0.81627,2449.0,2448.9,5.62635824]
[1749181435589,6.3665,2449.4,2448.9,5.62635824]
[1749181435884,0.81626,2449.1,2448.9,5.62635824]
[1749181436780,0.81627,2449.0,2448.9,5.62635824]
[1749181437082,0.81625,2449.1,2448.9,5.62635824]
[1749181437388,0.81627,2449.0,2448.9,3.21393522]
[1749181437581,0.81626,2449.1,2448.9,3.21393522]
[1749181437776,6.3665,2449.4,2448.9,3.21393522]
[1749181438189,0.81627,2449.0,2448.9,3.21393522]
[1749181438386,0.81627,2449.0,2448.9,5.62635824]